Cogmind - Beta 11 X5 @@@ ROGUE MODE // 2021.06.14 @ 18:31:51 Player: Luigi Panache Result: Destroyed by S-27 Virus with Autogun Performance ------------- Evolutions (3) 1500 Regions Visited (12) 2400 Robots Destroyed (50) 250 Value Destroyed (1301) 1301 Prototype IDs (39) 780 Alien Tech Used (0) 0 Bonus (557) 557 TOTAL SCORE: 6788 Bonus ------- High Alert Combat Kills 55 Follower Combat Kills 202 Met Data Miner 300 Cogmind --------- Core Integrity 0/700 Matter 300/300 Energy 100/100 System Corruption 1% Temperature Cool (0) Movement Core (50) Location -6/Proximity Caves Parts ------- > --- POWER (1) -------- (None) > --- PROPULSION (4) --- (None) > --- UTILITY (6) ------ Improved Signal Interpreter > --- WEAPON (2) ------- (None) > --- INVENTORY (5) ---- Small Storage Unit Improved Signal Interpreter Modified TNC Mini Grenade Launcher Power Maul Peak State ------------ > --- POWER ------------ Light Nuclear Core > --- PROPULSION ------- Improved VTOL Module Xenon Bombardment Thruster Xenon Bombardment Thruster Xenon Bombardment Thruster > --- UTILITY ---------- Improved Heat Sink Small Storage Unit High-capacity Storage Unit Transmission Jammer Light Armor Plating Hacking Suite > --- WEAPON ----------- Enhanced Autogun Makeshift Sword > --- INVENTORY -------- Xenon Bombardment Thruster Medium Storage Unit Experimental Sensor Array Modified TNC Makeshift System Shield EM Pulse Gun EM Pulse Gun EM Pulse Gun Assault Rifle Assault Rifle Mini Grenade Launcher Power Maul [Rating: 42] Favorites ----------- Power Ion Engine Engine Ion Engine Power Core Light Nuclear Core Propulsion Aluminum Leg Treads Light Treads Leg Aluminum Leg Flight Unit Xenon Bombardment Thruster Utility Medium Storage Unit Device Heat Sink Storage Medium Storage Unit Processor Melee Analysis Suite Hackware Hacking Suite Protection Improved Light Armor Plating Weapon Makeshift Sword Energy Gun EM Pulse Gun Ballistic Gun Enhanced Autogun Launcher Grenade Launcher Slashing Weapon Makeshift Sword Build | -11 -10 -10 -9 -9 -9 -8 -8 -7 -7 -7 -7 -6 ------- Run | Scr Mat Min Mat Min Exi Min Mat Fac Low Low Dat Pro Slots Evolved 6 | . . . 2 . . . 2 2 . . . . Power . | . . . . . . . . . . . . . Propulsion 2 | . . . 1 . . . . 1 . . . . Utility 4 | . . . 1 . . . 2 1 . . . . Weapon . | . . . . . . . . . . . . . Parts Attached 75 | 3 6 2 16 5 4 . 14 12 1 . . 12 Power 10 | . . . 2 . 1 . 3 2 . . . 2 Engine 5 | . . . 2 . 1 . . 1 . . . 1 Core 5 | . . . . . . . 3 1 . . . 1 Reactor . | . . . . . . . . . . . . . Propulsion 26 | 2 . . 4 . 1 . 6 5 1 . . 7 Treads 2 | 2 . . . . . . . . . . . . Leg 9 | . . . 4 . 1 . 4 . . . . . Wheel . | . . . . . . . . . . . . . Hover . | . . . . . . . . . . . . . Flight 15 | . . . . . . . 2 5 1 . . 7 Utility 19 | . 3 . 2 2 1 . 4 4 . . . 3 Device 5 | . 2 . . 1 1 . 1 . . . . . Storage 4 | . 1 . . . . . 1 2 . . . . Processor 4 | . . . . . . . . 1 . . . 3 Hackware 2 | . . . . . . . 1 1 . . . . Protection 4 | . . . 2 1 . . 1 . . . . . Artifact . | . . . . . . . . . . . . . Weapon 20 | 1 3 2 8 3 1 . 1 1 . . . . Energy Gun 11 | 1 3 1 6 . . . . . . . . . Energy Cannon . | . . . . . . . . . . . . . Ballistic Gun 4 | . . . . 3 . . 1 . . . . . Ballistic Cannon . | . . . . . . . . . . . . . Launcher 4 | . . 1 2 . . . . 1 . . . . Special Weapon . | . . . . . . . . . . . . . Impact Weapon . | . . . . . . . . . . . . . Slashing Weapon 1 | . . . . . 1 . . . . . . . Piercing Weapon . | . . . . . . . . . . . . . Special Melee Weapon . | . . . . . . . . . . . . . Unidentified Prototypes 3 | . . . . 1 . . 2 . . . . . Corrupted Parts 3 | . 1 . 2 . . . . . . . . . System Corruption 21 | . 1 . 20 . . . . . . . . . Parts Lost 29 | . . 2 8 . . . 2 2 1 . 2 12 Power 5 | . . . 2 . . . . 1 . . 1 1 Propulsion 14 | . . . 3 . . . 1 1 . . 1 8 Utility 5 | . . . 1 . . . 1 . 1 . . 2 Weapon 5 | . . 2 2 . . . . . . . . 1 Highest Loss Streak 6 | . . 1 3 . . . 1 2 1 . 2 6 Average Slot Usage (%) 84 | . 93 95 83 77 76 88 92 87 76 76 76 50 Engine 7 | . 14 14 8 . 9 11 3 1 . . . 1 Core 1 | . . . . . . . 5 5 7 7 7 . Treads 8 | . 28 28 11 . . . . . . . . . Leg 12 | . . . 13 22 26 33 26 4 . . . . Flight 5 | . . . . . . . . 23 30 30 30 15 Device 10 | . 7 14 11 11 11 11 17 9 7 7 7 1 Storage 10 | . 14 14 11 11 11 11 9 7 7 7 7 6 Hackware 4 | . . . . . . . 6 13 15 15 15 6 Protection 5 | . . . 9 11 11 11 7 7 . . . . Energy Gun 7 | . 28 20 17 . . . . . . . . . Ballistic Gun 2 | . . . . 22 . . 6 1 . . . . Slashing Weapon 4 | . . . . . 8 11 9 7 7 7 7 6 Naked Turns 3 | . . . . . . . . . . . . 3 Heaviest Build 55 | 13 20 21 23 18 21 21 55 55 23 20 20 18 Greatest Support 40 | 40 40 40 40 20 30 30 35 35 23 23 23 17 Greatest Overweight (x) 2 | . . . 1 . 1 . 1 1 . . . 2 Average Overweight (x) . | . . . . . . . . . . . . . Largest Inventory Capacity 20 | 8 10 10 10 10 10 10 20 20 10 10 10 10 Average Capacity 10 | 8 8 10 10 10 10 10 13 12 10 10 10 9 Most Carried 17 | 8 10 10 10 9 10 10 17 17 9 10 10 10 Average Carried 9 | 6 7 10 8 7 9 9 11 9 8 9 10 9 Final Capacity 20 | 8 10 10 10 10 10 10 20 10 10 10 10 5 Final Carried 17 | 6 10 10 7 9 10 10 17 8 9 10 10 5 Class Distribution -------------------- 46% | Mutant 20% | Commander-Mutant 16% | Hacker-Sprinter 15% | Scavenger-Mutant Dominant Class ---------------- Mutant | -10/Materials Mutant | -10/Mines Mutant | -9/Materials Mutant | -9/Mines Commander-Mutant | -9/Exiles Commander-Mutant | -8/Mines Scavenger-Mutant | -8/Materials Hacker-Sprinter | -7/Factory Hacker-Sprinter | -7/Lower Caves Hacker-Sprinter | -7/Lower Caves Hacker-Sprinter | -7/Data Miner Mutant | -6/Proximity Caves Resources | -11 -10 -10 -9 -9 -9 -8 -8 -7 -7 -7 -7 -6 ----------- Run | Scr Mat Min Mat Min Exi Min Mat Fac Low Low Dat Pro Matter Collected 1227 | 227 49 190 82 30 111 113 186 130 15 . . 94 Remotely . | . . . . . . . . . . . . . Salvage Created 1640 | . 347 154 466 . 111 . 342 93 . . . 127 Parts 97 | . 22 6 33 . 4 . 15 8 . . . 9 Haulers Intercepted 2 | . 1 . 1 . . . . . . . . . Recyclers Shooed . | . . . . . . . . . . . . . Parts Field Recycled . | . . . . . . . . . . . . . Retrieved Matter . | . . . . . . . . . . . . . Parts Self-Destructed 5 | . . . . . . . . . . . . 5 Prevented . | . . . . . . . . . . . . . Kills | -11 -10 -10 -9 -9 -9 -8 -8 -7 -7 -7 -7 -6 ------- Run | Scr Mat Min Mat Min Exi Min Mat Fac Low Low Dat Pro Combat Hostiles Destroyed 46 | . 7 14 14 . . . 6 . . . . 5 Melee 11 | . . . . . . . 6 . . . . 5 Guns 11 | . 7 2 2 . . . . . . . . . AOE 23 | . . 11 12 . . . . . . . . . Classes Destroyed 11 | . 5 1 4 . . . 1 . . . . . Worker 4 | . 1 . . . . . . 3 . . . . Builder 3 | . 1 . 1 . . . 1 . . . . . Hauler 2 | . 1 . 1 . . . . . . . . . Recycler 1 | . . . 1 . . . . . . . . . Operator 1 | . . . . . . . 1 . . . . . Watcher 2 | . . . 1 . . . . 1 . . . . Swarmer 15 | . 3 3 4 . . . . . . . . 5 Grunt 19 | . 4 2 8 . . . 5 . . . . . Duelist 1 | . . . 1 . . . . . . . . . Sentry 2 | . . . 1 . . . 1 . . . . . Assembled 9 | . . 9 . . . . . . . . . . Best Kill Streak 8 | . 5 6 8 . . . 3 2 . . . 2 Combat Bots Only 6 | . 3 6 6 . . . 3 . . . . 2 Max Kills in Single Turn 3 | . 1 2 3 . . . 1 1 . . . 1 Gunslinging . | . . . . . . . . . . . . . Exploded 2 | . . 2 2 . . . . . . . . . Melee 1 | . . . . . . . 1 . . . . 1 Uniques/NPCs Destroyed . | . . . . . . . . . . . . . Combat | -11 -10 -10 -9 -9 -9 -8 -8 -7 -7 -7 -7 -6 -------- Run | Scr Mat Min Mat Min Exi Min Mat Fac Low Low Dat Pro Damage Taken 3458 | . 237 444 906 . . 12 404 142 132 . 88 1093 Core 1031 | . 93 94 44 . . . 89 13 35 . 43 620 Absorbed by Shields . | . . . . . . . . . . . . . Core Remaining (%) 74 | 100 . 25 . . . 89 83 . . . . . Volleys Fired 88 | . 22 34 24 2 . . 6 . . . . . Largest 2 | . 2 2 2 2 . . 1 . . . . . Hottest 80 | . 80 80 80 40 . . 25 . . . . . Shots Fired 136 | . 44 40 42 4 . . 6 . . . . . Gun 113 | . 44 23 36 4 . . 6 . . . . . Cannon . | . . . . . . . . . . . . . Launcher 23 | . . 17 6 . . . . . . . . . Special . | . . . . . . . . . . . . . Kinetic 10 | . . . . 4 . . 6 . . . . . Thermal 2 | . . . 2 . . . . . . . . . Explosive 23 | . . 17 6 . . . . . . . . . Electromagnetic 101 | . 44 23 34 . . . . . . . . . Robot Hit Streak 9 | . 6 6 9 2 . . 2 . . . . . Robot Miss Streak 4 | . 3 4 3 1 . . 1 . . . . . Penetration Max . | . . . . . . . . . . . . . Secondary Targets 1 | . 1 . . . . . . . . . . . Max Gunslinging Chain 1 | . 1 . . . . . . . . . . . Shots Hit Robots 130 | . 27 21 31 3 8 . 22 6 . . 1 11 Core Hits 84 | . 15 19 27 . 6 . 8 4 . . . 5 Critical Kills . | . . . . . . . . . . . . . Critical Parts Destroyed . | . . . . . . . . . . . . . Critical Strikes 3 | . 1 . 1 . . . . . . . . 1 Corrupt 2 | . 1 . 1 . . . . . . . . . Sever 1 | . . . . . . . . . . . . 1 Melee Attacks 78 | . . . . . 8 . 27 12 . 1 5 25 Impact . | . . . . . . . . . . . . . Slashing 78 | . . . . . 8 . 27 12 . 1 5 25 Piercing . | . . . . . . . . . . . . . Sneak Attacks 5 | . . . . . . . 1 3 . . 1 . Combat Hostiles . | . . . . . . . . . . . . . Follow-up Attacks . | . . . . . . . . . . . . . Damage Inflicted 5525 | . 453 834 1432 45 1008 . 775 450 . . 120 408 Guns 976 | . 396 165 307 43 . . 65 . . . . . Cannons . | . . . . . . . . . . . . . Explosions 1845 | . 55 669 1121 . . . . . . . . . Melee 2688 | . . . . . 1008 . 710 450 . . 120 400 Ramming 16 | . 2 . 4 2 . . . . . . . 8 Kinetic 108 | . . . . 43 . . 65 . . . . . Thermal 314 | . 55 102 157 . . . . . . . . . Explosive 1500 | . . 567 933 . . . . . . . . . Electromagnetic 899 | . 396 165 338 . . . . . . . . . Impact . | . . . . . . . . . . . . . Slashing 2688 | . . . . . 1008 . 710 450 . . 120 400 Piercing . | . . . . . . . . . . . . . Highest Corruption 22 | . 1 1 22 22 22 22 . . 1 1 1 1 Average Corruption 9 | . 1 1 19 22 22 22 . . 1 1 1 1 Corruption Purged . | . . . . . . . . . . . . . Effects 52 | . . 2 4 7 29 7 . . . . 1 2 Message Errors 10 | . . 1 1 1 4 1 . . . . 1 1 Matter Fused 14 | . . . 2 1 7 4 . . . . . . Heat Flow Errors 5 | . . . . . 4 1 . . . . . . Energy Discharges 6 | . . . . 2 3 1 . . . . . . Data Loss (minor) 8 | . . 1 . 2 4 . . . . . . 1 Data Loss (major) 3 | . . . . 1 2 . . . . . . . Alerts 1 | . . . . . 1 . . . . . . . Misdirections 5 | . . . 1 . 4 . . . . . . . Overload Shots . | . . . . . . . . . . . . . Overflow Damage 390 | . 17 43 86 . 145 . . 16 . . 60 23 Projectiles . | . . . . . . . . . . . . . Explosions 146 | . 17 43 86 . . . . . . . . . Melee 244 | . . . . . 145 . . 16 . . 60 23 Knockbacks . | . . . . . . . . . . . . . Impact . | . . . . . . . . . . . . . Kinetic . | . . . . . . . . . . . . . Secondary . | . . . . . . . . . . . . . Self-Inflicted Damage 535 | . 40 108 383 . . . . . . . . 4 Shots 14 | . 1 4 9 . . . . . . . . . Rammed 3 | . 1 . 1 . . . . . . . . 1 Targets Rammed 5 | . 2 . 1 1 . . . . . . . 1 Kicked 1 | . . . . 1 . . . . . . . . Crushed 1 | . 1 . . . . . . . . . . . Highest Temperature 248 | . 144 2 34 . 248 73 . 38 17 . . . Average Temperature 54 | . 50 2 15 . 102 41 . 29 8 . . . Received Heat Transfer 729 | . 72 63 216 . . . 243 45 27 . 12 51 Effects 1 | . . . . . 1 . . . . . . . Interference 1 | . . . . . 1 . . . . . . . Siege Activations . | . . . . . . . . . . . . . Robots Corrupted 1 | . . 1 . . . . . . . . . . Combat Hostiles 1 | . . 1 . . . . . . . . . . Parts Fried 6 | . 3 2 1 . . . . . . . . . Impact Corruptions . | . . . . . . . . . . . . . Robots Melted . | . . . . . . . . . . . . . Combat Hostiles . | . . . . . . . . . . . . . Parts Melted . | . . . . . . . . . . . . . Heat Transferred 475 | . 100 150 225 . . . . . . . . . Parts Sabotaged . | . . . . . . . . . . . . . Parts Stolen . | . . . . . . . . . . . . . Parts Stripped . | . . . . . . . . . . . . . Power Chain Reactions 7 | . 1 2 4 . . . . . . . . . Missiles Intercepted . | . . . . . . . . . . . . . Alert | -11 -10 -10 -9 -9 -9 -8 -8 -7 -7 -7 -7 -6 ------- Run | Scr Mat Min Mat Min Exi Min Mat Fac Low Low Dat Pro Peak Influence 519 | . 212 197 422 160 . 37 519 131 . . . . Initial 160 | . . 82 35 160 . . 14 76 . . . . Average 156 | . 95 118 152 160 . 8 309 99 . . . . Maximum Alert Level 2 | . 1 . 2 . . . 2 . . . . . Low Security (%) 76 | 100 78 100 64 100 . 100 31 100 . . . . Level 1 15 | . 21 . 25 . . . 38 . . . . . Level 2 8 | . . . 10 . . . 29 . . . . . Level 3 . | . . . . . . . . . . . . . Level 4 . | . . . . . . . . . . . . . Level 5 . | . . . . . . . . . . . . . High Security . | . . . . . . . . . . . . . Max Security . | . . . . . . . . . . . . . Squads Dispatched 4 | . . . 2 . . . 2 . . . . . Investigation 1 | . . . . . . . 1 . . . . . Extermination . | . . . . . . . . . . . . . Reinforcement 3 | . . . 2 . . . 1 . . . . . Assault . | . . . . . . . . . . . . . Garrison . | . . . . . . . . . . . . . Intercept . | . . . . . . . . . . . . . Construction Impeded 2 | . . . 2 . . . . . . . . . Haulers Reinforced . | . . . . . . . . . . . . . Cargo Convoy Interrupts . | . . . . . . . . . . . . . Stealth | -11 -10 -10 -9 -9 -9 -8 -8 -7 -7 -7 -7 -6 --------- Run | Scr Mat Min Mat Min Exi Min Mat Fac Low Low Dat Pro Distress Signals 3 | . 1 . 2 . . . . . . . . . Communications Jammed 1 | . . . . . . . 1 . . . . . Distress Signals 1 | . . . . . . . 1 . . . . . Times Spotted 111 | . 11 21 19 . . 1 16 10 11 . 4 18 Peak Tracking Total 9 | . 4 5 8 . . 1 3 8 9 . 4 9 Tactical Retreats 11 | . . 2 1 . . . 1 . 4 . . 3 Traps | -11 -10 -10 -9 -9 -9 -8 -8 -7 -7 -7 -7 -6 ------- Run | Scr Mat Min Mat Min Exi Min Mat Fac Low Low Dat Pro Traps Triggered 1 | . . . . . . . . 1 . . . . Indirectly . | . . . . . . . . . . . . . Trap Hack Attempts . | . . . . . . . . . . . . . Triggered . | . . . . . . . . . . . . . Disarmed . | . . . . . . . . . . . . . Reprogrammed . | . . . . . . . . . . . . . Reused . | . . . . . . . . . . . . . Traps Extracted . | . . . . . . . . . . . . . Installed . | . . . . . . . . . . . . . Triggered 1 | . . . . . . . . . . 1 . . Machines | -11 -10 -10 -9 -9 -9 -8 -8 -7 -7 -7 -7 -6 ---------- Run | Scr Mat Min Mat Min Exi Min Mat Fac Low Low Dat Pro Machines Disabled 11 | . 1 3 4 . . 1 . . . 1 1 . Max in Single Turn 2 | . 1 2 2 . . . . . . 1 1 . Garrison Access 1 | . . . . . . . 1 . . . . . Machines Sabotaged . | . . . . . . . . . . . . . Garrisons Compromised . | . . . . . . . . . . . . . Overloaded Fab Kills . | . . . . . . . . . . . . . Fab Network Shutdowns . | . . . . . . . . . . . . . Hacking | -11 -10 -10 -9 -9 -9 -8 -8 -7 -7 -7 -7 -6 --------- Run | Scr Mat Min Mat Min Exi Min Mat Fac Low Low Dat Pro Machines Accessed 13 | . 1 . 2 . 1 . 2 3 1 . 3 . Terminals 6 | . 1 . 2 . . . 1 2 . . . . Fabricators . | . . . . . . . . . . . . . Repair Stations 1 | . . . . . . . . 1 . . . . Recycling Units . | . . . . . . . . . . . . . Scanalyzers . | . . . . . . . . . . . . . Garrison Access 1 | . . . . . . . 1 . . . . . Total Hacks 47 | . 3 . 4 . 1 . 5 10 1 . 23 . Successful 39 | . 3 . 3 . 1 . 2 6 1 . 23 . Failed 8 | . . . 1 . . . 3 4 . . . . Catastrophic 2 | . . . . . . . 1 1 . . . . Database Lockouts . | . . . . . . . . . . . . . Manual 11 | . 2 . 2 . 1 . 6 . . . . . Terminals 19 | . 3 . 4 . . . 4 8 . . . . Fabricators . | . . . . . . . . . . . . . Repair Stations 2 | . . . . . . . . 2 . . . . Recycling Units . | . . . . . . . . . . . . . Scanalyzers . | . . . . . . . . . . . . . Garrison Access 1 | . . . . . . . 1 . . . . . Terminal Hacks 35 | . 2 . 3 . 1 . 1 4 1 . 23 . Record 6 | . . . . . . . . . . . 6 . Part Schematic 10 | . . . . . . . . 1 . . 9 . Robot Schematic 5 | . . . . . . . . . . . 5 . Prototype ID Bank 4 | . 1 . . . . . . . . . 3 . Open Door 1 | . . . . . . . . . 1 . . . Branch Access Points 2 | . 1 . . . . . . 1 . . . . Scanalyzer Index 1 | . . . . . . . . 1 . . . . Alert Level 1 | . . . 1 . . . . . . . . . Unreport Threat 1 | . . . . . . . 1 . . . . . Security Status 1 | . . . 1 . . . . . . . . . Hauler Manifests 1 | . . . . . . . . 1 . . . . Zone Layout 1 | . . . 1 . . . . . . . . . EX-Prototype ID Bank 1 | . . . . . 1 . . . . . . . Fabricator Hacks . | . . . . . . . . . . . . . Repair Station Hacks 2 | . . . . . . . . 2 . . . . Scan Component 1 | . . . . . . . . 1 . . . . Repair 1 | . . . . . . . . 1 . . . . Recycling Unit Hacks . | . . . . . . . . . . . . . Scanalyzer . | . . . . . . . . . . . . . Garrison Access Hacks . | . . . . . . . . . . . . . Unauthorized Hacks 2 | . 1 . . . . . 1 . . . . . Terminals 1 | . 1 . . . . . . . . . . . Botnet 1 | . 1 . . . . . . . . . . . Fabricators . | . . . . . . . . . . . . . Repair Stations . | . . . . . . . . . . . . . Recycling Units . | . . . . . . . . . . . . . Scanalyzers . | . . . . . . . . . . . . . Garrison Access 1 | . . . . . . . 1 . . . . . Jam 1 | . . . . . . . 1 . . . . . Data Cores Recovered . | . . . . . . . . . . . . . Used . | . . . . . . . . . . . . . Hacking Detections 5 | . 1 . 1 . . . 1 2 . . . . Full Trace Events . | . . . . . . . . . . . . . Feedback Events . | . . . . . . . . . . . . . Feedback Blocked . | . . . . . . . . . . . . . Robot Schematics Acquired 5 | . . . . . . . . . . . 5 . Robots Built . | . . . . . . . . . . . . . Matter . | . . . . . . . . . . . . . Time . | . . . . . . . . . . . . . Total Robot Build Rating . | . . . . . . . . . . . . . Part Schematics Acquired 10 | . . . . . . . . 1 . . 9 . Parts Built . | . . . . . . . . . . . . . Matter . | . . . . . . . . . . . . . Time . | . . . . . . . . . . . . . Total Part Build Rating . | . . . . . . . . . . . . . Parts Repaired 1 | . . . . . . . . 1 . . . . Time 54 | . . . . . . . . 54 . . . . Parts Recycled . | . . . . . . . . . . . . . Recycled Matter . | . . . . . . . . . . . . . Retrieved Matter . | . . . . . . . . . . . . . Retrieved Components . | . . . . . . . . . . . . . Parts Scanalyzed . | . . . . . . . . . . . . . Part Schematics Acquired . | . . . . . . . . . . . . . Parts Damaged . | . . . . . . . . . . . . . Bothacking | -11 -10 -10 -9 -9 -9 -8 -8 -7 -7 -7 -7 -6 ------------ Run | Scr Mat Min Mat Min Exi Min Mat Fac Low Low Dat Pro Used RIF Installer . | . . . . . . . . . . . . . Robots Hacked . | . . . . . . . . . . . . . Non-combat . | . . . . . . . . . . . . . Combat . | . . . . . . . . . . . . . Robot Hacks Applied . | . . . . . . . . . . . . . Relay Couplers Released . | . . . . . . . . . . . . . Robots Rewired 4 | . . . . . 4 . . . . . . . Allies Hacked . | . . . . . . . . . . . . . Hacks Repelled . | . . . . . . . . . . . . . Allies | -11 -10 -10 -9 -9 -9 -8 -8 -7 -7 -7 -7 -6 -------- Run | Scr Mat Min Mat Min Exi Min Mat Fac Low Low Dat Pro Total Allies 7 | . . . . 3 4 . . . . . . . Largest Group 7 | . . . . 3 7 7 4 . . . . . Highest-Rated Group 85 | . . . . 40 85 85 61 . . . . . Highest-Rated Ally 21 | . . . . 16 21 21 21 . . . . . Total Orders . | . . . . . . . . . . . . . Ally Attacks 82 | . . . . . . 20 62 . . . . . Total Damage 901 | . . . . . . 194 707 . . . . . Kills 9 | . . . . . . 1 8 . . . . . Allies Corrupted . | . . . . . . . . . . . . . Allies Melted . | . . . . . . . . . . . . . Intel | -11 -10 -10 -9 -9 -9 -8 -8 -7 -7 -7 -7 -6 ------- Run | Scr Mat Min Mat Min Exi Min Mat Fac Low Low Dat Pro Robot Analysis Total . | . . . . . . . . . . . . . Derelict Logs Recovered 7 | . . 1 . 1 . . . . 3 1 . 1 Drone Launches . | . . . . . . . . . . . . . Drone Recoveries . | . . . . . . . . . . . . . Exploration | -11 -10 -10 -9 -9 -9 -8 -8 -7 -7 -7 -7 -6 ------------- Run | Scr Mat Min Mat Min Exi Min Mat Fac Low Low Dat Pro Turns Passed 3752 | 11 396 621 308 184 548 154 598 319 96 187 64 266 Spaces Moved 2842 | 5 183 326 137 136 311 110 333 383 324 200 93 301 Core 22 | . . . . . . . . . . . . 22 Treads 594 | 3 183 326 82 . . . . . . . . . Legs 978 | 2 . . 55 136 311 110 333 31 . . . . Wheels . | . . . . . . . . . . . . . Hover . | . . . . . . . . . . . . . Flight 1248 | . . . . . . . . 352 324 200 93 279 Fastest Speed 26 | 120 160 160 120 120 120 120 120 29 29 29 29 26 Average Speed 97 | 144 160 160 147 120 142 120 145 42 29 29 29 61 Slowest Speed 200 | 160 160 160 200 120 200 120 200 200 29 29 32 175 Overloaded Moves . | . . . . . . . . . . . . . Propulsion Burnouts . | . . . . . . . . . . . . . Robots Hopped 8 | . . . . . . . . 5 . . 1 2 Cave-ins Triggered . | . . . . . . . . . . . . . Exploration Rate (%) 42 | 2 31 89 25 48 71 35 25 9 60 42 76 45 Regions Visited 12 Branch Regions 8 Pre-discovered Areas 4 | . . . . 1 . . . . . 1 1 1 Known Exits Taken 4 | . 1 . 1 . . . . 1 1 . . . Unknown Exits Taken 8 | 1 . 1 . 1 1 1 1 . . 1 1 . Scrap Searched 7 | . . 1 . 1 . 1 . . 1 1 . 2 Spaces Dug 3 | . . . . . . . . 3 . . . . Terrain Destroyed 128 | . 6 72 47 . . . . 3 . . . . Melee 3 | . . . . . . . . 3 . . . . Projectile . | . . . . . . . . . . . . . AOE 125 | . 6 72 47 . . . . . . . . . Terrain Rammed . | . . . . . . . . . . . . . Walls Destroyed . | . . . . . . . . . . . . . Machines Disabled . | . . . . . . . . . . . . . Actions | -11 -10 -10 -9 -9 -9 -8 -8 -7 -7 -7 -7 -6 --------- Run | Scr Mat Min Mat Min Exi Min Mat Fac Low Low Dat Pro Total 3593 | 9 244 385 198 151 408 132 418 525 324 327 122 350 Wait 413 | . 14 24 16 6 44 21 19 107 . 126 26 10 Move 2816 | 4 182 325 136 135 310 109 332 374 323 199 90 297 Hop 6 | . . . . . . . . 3 . . 1 2 Pick Up 27 | . 7 . 3 . 2 1 9 3 . 1 . 1 Fast Attach 36 | . 5 1 2 2 2 . 11 3 . . . 10 Attach 20 | 2 . . 8 . 1 . . 8 . . . 1 Detach 10 | 2 3 . . 1 1 . . 2 . . . 1 Swap 19 | 1 1 1 6 3 1 . 3 1 1 . . 1 Drop 39 | . 8 . 2 1 3 1 11 12 . . . 1 Fire 88 | . 22 34 24 2 . . 6 . . . . . Melee 78 | . . . . . 8 . 27 12 . 1 5 25 Ram 1 | . . . . . . . . . . . . 1 Kick 1 | . . . . 1 . . . . . . . . Crush 3 | . 2 . 1 . . . . . . . . . Escape Stasis . | . . . . . . . . . . . . . Rewire 36 | . . . . . 36 . . . . . . . Trap . | . . . . . . . . . . . . . Miscellaneous . | . . . . . . . . . . . . . Route ------- -11/Scrapyard -10/Materials (discovered 2 exits: *Min x2) -10/Mines (discovered 2 exits: *Mat x2) -9/Materials -9/Mines -9/Exiles -8/Mines -8/Materials -7/Factory (discovered 2 exits: *Low x2) -7/Lower Caves -7/Lower Caves -7/Data Miner -6/Proximity Caves History --------- Turn | Location | Event 1 | -11/Scrapyard | Discovered new exit (range 3) 12 | -11/Scrapyard | Entered Materials 134 | -10/Materials | Identified exit to Mines 315 | -10/Materials | Build established: Mutant 408 | -10/Materials | Entered Mines 438 | -10/Mines | Discovered new exit (range 12) 483 | -10/Mines | Learned location of 1 exit from Materials 688 | -10/Mines | Assembled infested the area 826 | -10/Mines | Core integrity fell below 50% 827 | -10/Mines | Discovered new exit (range 15) 1029 | -10/Mines | Entered Materials 1029 | -9/Materials | Evolved 2 slots: Propulsion x1, Utility x1 1030 | -9/Materials | Identified exit to Mines 1216 | -9/Materials | Lost 3 parts (2n1w) 1271 | -9/Materials | Lost 3 parts (1p1u1w) 1279 | -9/Materials | System corruption reached 10% 1337 | -9/Materials | Entered Mines 1368 | -9/Mines | Assisted by bots powering up and referring to "LRC-V3" 1400 | -9/Mines | Found a damaged Exp. Sensor Array with a note attached 1403 | -9/Mines | Found Prototype Device 1403 | -9/Mines | Identified Exp. Sensor Array 1484 | -9/Mines | Learned location of Recycling (-8) 1510 | -9/Mines | Deemed a non-threat by the Exiles lab entrance 1510 | -9/Mines | Discovered new exit (range 5) 1521 | -9/Mines | Entered Exiles 1521 | -9/Exiles | Found Exiles lab destroyed 1521 | -9/Exiles | Accompanied by 3 allies 1853 | -9/Exiles | Opened EX-Vault 1866 | -9/Exiles | Found Modified TNC 1884 | -9/Exiles | Build established: Commander-Mutant 2015 | -9/Exiles | Discovered new exit (range 10) 2069 | -9/Exiles | Entered Mines 2069 | -8/Mines | Accompanied by 7 allies 2198 | -8/Mines | Discovered new exit (range 7) 2223 | -8/Mines | Entered Materials 2223 | -8/Materials | Accompanied by 4 allies 2223 | -8/Materials | Evolved 2 slots: Utility x2 2629 | -8/Materials | Build established: Scavenger-Mutant 2704 | -8/Materials | Discovered new exit (range 4) 2821 | -8/Materials | Entered Factory 2821 | -7/Factory | Evolved 2 slots: Propulsion x1, Utility x1 3005 | -7/Factory | Repaired Faulty Exp. Sensor Array 3094 | -7/Factory | Identified exit to Lower Caves 3140 | -7/Factory | Entered Lower Caves 3151 | -7/Lower Caves | Learned Factory emergency access door positions 3154 | -7/Lower Caves | Learned Factory terminal intel 3157 | -7/Lower Caves | Attracted the attention of an 0b10 checkpoint 3163 | -7/Lower Caves | Spotted B-75 Beast 3175 | -7/Lower Caves | Ambushed by wild Derelicts 3196 | -7/Lower Caves | Build established: Hacker-Sprinter 3223 | -7/Lower Caves | Identified exit to Lower Caves 3236 | -7/Lower Caves | Entered another Lower Caves area 3415 | -7/Lower Caves | Learned location of Zion (-6) 3419 | -7/Lower Caves | Discovered new exit (range 14) 3423 | -7/Lower Caves | Entered Data Miner 3423 | -7/Data Miner | Discovered new exit (range 6) 3429 | -7/Data Miner | Met Data Miner 3435 | -7/Data Miner | Learned location of Section 7 (-2) 3435 | -7/Data Miner | Acquired the access code to Warlord's prototype stash 3438 | -7/Data Miner | Received God Mode back door access code from Data Miner 3446 | -7/Data Miner | Data Conduit disabled 3487 | -7/Data Miner | Entered Proximity Caves 3533 | -6/Proximity Caves | Lost 5 parts (1p3n1u) 3571 | -6/Proximity Caves | Core integrity fell below 50% 3596 | -6/Proximity Caves | Spotted B-75 Beast 3606 | -6/Proximity Caves | Lost 3 parts (1p2n) 3701 | -6/Proximity Caves | Attracted the attention of an 0b10 checkpoint 3723 | -6/Proximity Caves | Released all parts (5) 3737 | -6/Proximity Caves | Learned location of Extension (-4) 3744 | -6/Proximity Caves | Core integrity fell below 20% 3753 | -6/Proximity Caves | Destroyed by S-27 Virus with Autogun Last Messages --------------- 03723_ Released Med. Storage Unit. 03723_ Released Imp. VTOL Module. 03723_ Released Hacking Suite. 03724_ Dropped Transmission Jammer. 03724_ Acquired Mni. Grenade Launcher. 03726_ Acquired VTOL Module. 03728_ Acquired Imp. VTOL Module. 03728_ Imp. VTOL Module destroyed. 03737_ Acquired derelict log, extracted data. World map updated: -4/Extension. 03738_ Acquired 15 matter. 03740_ Searching scrap... 03740_ Found Lyr. Medium Armor Plating. 03740_ Found Propulsion Shielding. 03740_ Found Imp. Signal Interpreter. 03740_ Found Com. Battery. 03740_ Found 14 Matter. 03740_ Acquired Imp. Signal Interpreter. 03742_ VTOL Module destroyed. 03748_ Slammed into S-27 Virus. Map ----- +----------------------------------------------------+ | | | | | | | | | | | ?????????????????????????????????????????????????? | | ?????????????????????????????????????????????????? | | ?????????????????????????????????????????????????? | | ?????????????????????????????????????????????????? | | ?????????????????????????????????????????????????? | | ?????????????????????????????????????????????????? | | ?????????????????????????????????????????????????? | | ?????????????????????????????????????????????????? | | ?????????????????????????????????????????????????? | | ?????????????????????????????????????????????????? | | ?????????????????????????????????????????????????? | | ?????????????????????????????????????????????????? | | ?????????????????????????????????????????????????? | | ?????????????????????????????????????????????????? | | ?????????????????????????????????????????????????? | | ???????????###??#####????????????????????????????? | | ????????#### #??# ########?????????????????????? | | ????????# ###?# ###???????????????????? | | ????????# #### #???????????????????? | | #????#### s s s ###??????????????????? | | #### s s s s @ #??????????????????? | | % ## ## ######## #??????????????????? | | ##### ######### #???????????????????????????? | | ?????## #???????# #???????????????????????????? | | #?????# ##??????# #???????????????????????????? | | ##???# #??????# #???????????????????????????? | | #??## ##?????? #???????????????????????????? | | # #### ! #???##??# #???????????????????????????? | | # ## !% ### #??# #???????????????????????????? | | #%% ! #??? ????????????????????????????? | | ### ##???#????????????????????????????? | | #### #?????????????????????????????????? | | "%" ##?????????????????????????????????? | | % " #####??????????????????????????????????? | | ##### #??????????????????????????????????????? | | ## #??????????????????????????????????????? | | # #??????????????????????????????????????? | | ####??????????????????????????????????????? | | #?????????????????????????????????????????? | | ## ##?????????????????????????????????????????? | | ?# ###??????????????????????????????????????????? | | ?# #????????????????????????????????????????????? | | ?# #????????????????????????????????????????????? | | ?# ????????????????????????????????????????????? | | ? ????????????????????????????????????????????? | +----------------------------------------------------+ Best States ------------- Heat Dissipation 48 Energy Generation 14 Energy Capacity 250 Matter Stores 300 Matter Capacity 300 Sight Range 16 Robot Scan Range 14 Terrain Scan Density 10 Jamming Range 8 Armor Coverage 150 Evasion (%) 64 Targeting Accuracy 8 Melee Accuracy 5 Core Analysis 6 Recoil Reduction 2 Offensive Hacking 10 Defensive Hacking 11 Item Schematics ----------------- Imp. Weapon Cycler | -7/Factory | Hacked Plasma Sword | -7/Data Miner | Free Mni. Smartbomb Launcher | -7/Data Miner | Free Kinetic Spear | -7/Data Miner | Free Cloaking Device | -7/Data Miner | Free Exp. Transmission Jammer | -7/Data Miner | Free Triangulator | -7/Data Miner | Free Exp. Cesium-ion Thruster | -7/Data Miner | Free Lgt. Regenerative Plating | -7/Data Miner | Free Combat Drone Bay | -7/Data Miner | Free Robot Schematics ------------------ S-27 Virus | -7/Data Miner | Free G-50 Soldier | -7/Data Miner | Free L-41 Fighter | -7/Data Miner | Free I-36 Angel | -7/Data Miner | Free I-47 Archangel | -7/Data Miner | Free Fabricated ------------ Nothing Alien Tech Used ----------------- None Achievements -------------- None Challenges ------------ None Game ------ Seed ArmorPoweredChronowheel Manual? 0 Play Time 00:36:02 Cumulative 381.9 hours Start 2021.06.14 @ 17:49:05 End 2021.06.14 @ 18:31:51 Sessions 1 Manual Loads 0 Difficulty Rogue Special Mode None Game No. 365 Rogue 150 Adventurer 112 Explorer 103 Win Type - Total 26 Types 18/0/5/2/0/0/0/1/0 Lore% 84 Gallery% 90 Achievement% 74 Wizard Run 0 Options --------- ASCII 0 Keyboard 0 Movement Numpad Keybinds 0 Fullscreen 2 Font 18/TerminusBold Map View 76x50 Tactical HUD 1 Map Filters NONE Filters NONE Steam 1 RUN: 3585ce99-bb71-4df2-84db-38b212531135